Cogmind - Beta 13 @@@ ROGUE MODE // 2024.06.06 @ 20:25:42 Player: Lunace Result: Self-destructed Performance ------------- Evolutions (3) 1500 Regions Visited (6) 1200 Robots Destroyed (41) 205 Value Destroyed (1195) 1195 Prototype IDs (13) 260 Alien Tech Used (0) 0 Bonus (-498) -498 TOTAL SCORE: 3862 Bonus ------- High Alert Combat Kills 72 Follower Combat Kills 120 Friendly Fire -690 Cogmind --------- Core Integrity 487/700 Matter 5/300 Energy 100/100 System Corruption 1% Temperature Cool (0) Movement Walking (200) Ox1 Location -7/Storage Parts ------- > --- POWER (2) -------- (None) > --- PROPULSION (4) --- Titanium Leg > --- UTILITY (5) ------ Large Storage Unit > --- WEAPON (2) ------- Improved Grenade Launcher > --- INVENTORY (15) --- Improved Deuterium Engine Improved Deuterium Engine Titanium Leg Titanium Leg Titanium Leg Huge Storage Unit Hardened Heavy Armor Plating Component Analysis Suite System Restoration Module Slug Cannon Grenade Launcher Grenade Launcher Grenade Launcher Multitool Peak State ------------ > --- POWER ------------ Improved Deuterium Engine Improved Deuterium Engine > --- PROPULSION ------- Titanium Leg Titanium Leg Cargo Legs > --- UTILITY ---------- Large Storage Unit Light Armor Plating Shield Generator Long-range Tractor Beam Cobbler Unit > --- WEAPON ----------- Advanced Assault Cannon Multitool > --- INVENTORY -------- Improved Deuterium Engine Titanium Leg Huge Storage Unit Component Analysis Suite System Restoration Module Slug Cannon Grenade Launcher Grenade Launcher Grenade Launcher Subdweller Shrapnel Launcher Enhanced Flamer Enhanced Flamer [Rating: 50] Favorites ----------- Power Ion Engine Engine Ion Engine Propulsion Cargo Legs Treads Light Treads Leg Cargo Legs Utility Medium Storage Unit Device V3-11A's Pendant Storage Medium Storage Unit Protection Light Armor Plating Weapon Battle Rifle Energy Gun Subdweller Laser Ballistic Gun Battle Rifle Ballistic Cannon Battle Cannon Launcher Grenade Launcher Special Weapon Multitool Build | -11 -10 -10 -10 -8 -7 -7 ------- Run | Yrd Mat Min Sub Mat Fac Sto Slots Evolved 6 | . . . . 4 2 . Power 1 | . . . . 1 . . Propulsion 2 | . . . . 2 . . Utility 3 | . . . . 1 2 . Weapon . | . . . . . . . Parts Attached 40 | 7 3 1 11 7 10 1 Power 7 | 1 . . 3 1 2 . Engine 7 | 1 . . 3 1 2 . Core . | . . . . . . . Reactor . | . . . . . . . Propulsion 7 | 2 . . 1 1 3 . Treads 2 | 2 . . . . . . Leg 5 | . . . 1 1 3 . Wheel . | . . . . . . . Hover . | . . . . . . . Flight . | . . . . . . . Utility 11 | 2 2 . 2 3 2 . Device 6 | 1 . . 2 2 1 . Storage 3 | 1 1 . . 1 . . Processor . | . . . . . . . Hackware . | . . . . . . . Protection 2 | . 1 . . . 1 . Artifact . | . . . . . . . Weapon 15 | 2 1 1 5 2 3 1 Energy Gun 2 | . 1 . 1 . . . Energy Cannon . | . . . . . . . Ballistic Gun 4 | 2 . . 2 . . . Ballistic Cannon 3 | . . . 1 1 1 . Launcher 5 | . . 1 1 1 1 1 Special Weapon 1 | . . . . . 1 . Impact Weapon . | . . . . . . . Slashing Weapon . | . . . . . . . Piercing Weapon . | . . . . . . . Special Melee Weapon . | . . . . . . . Unidentified Prototypes 1 | . . . 1 . . . Parts Lost 9 | . . . . . 4 5 Power 2 | . . . . . . 2 Propulsion 2 | . . . . . . 2 Utility 3 | . . . . . 3 . Weapon 2 | . . . . . 1 1 Highest Loss Streak 5 | . . . . . 3 5 To Critical Strikes . | . . . . . . . Average Slot Usage (%) 78 | . 100 100 76 65 76 47 Engine 12 | . 14 14 11 10 14 11 Treads 5 | . 28 28 1 . . . Leg 11 | . . . 10 15 19 21 Device 12 | . 12 . 11 16 16 . Storage 10 | . 14 14 11 8 7 7 Protection 3 | . 1 14 3 . 4 . Energy Gun 3 | . 7 5 4 . . . Ballistic Gun 7 | . 20 14 9 . . . Ballistic Cannon 5 | . . . 5 8 8 5 Launcher 4 | . . 8 4 6 3 . Naked Turns . | . . . . . . . Heaviest Build 72 | 14 23 23 26 58 72 46 Greatest Support 89 | 40 40 40 55 72 89 89 Greatest Overweight (x) 1 | 1 . . . . . . Average Overweight (x) . | . . . . . . . Largest Inventory Capacity 15 | 8 10 10 10 15 15 15 Average Capacity 11 | 7 9 10 10 13 15 15 Most Carried 15 | 1 5 5 10 12 14 15 Average Carried 8 | . 2 5 7 9 11 14 Final Capacity 15 | 8 10 10 10 15 15 15 Final Carried 15 | 1 5 5 8 9 13 15 Class Distribution -------------------- 100% | Mutant Dominant Class ---------------- Mutant | -10/Materials Mutant | -10/Mines Mutant | -10/Subcaves Mutant | -8/Materials Mutant | -7/Factory Mutant | -7/Storage Resources | -11 -10 -10 -10 -8 -7 -7 ----------- Run | Yrd Mat Min Sub Mat Fac Sto Matter Collected 1345 | 282 103 52 434 16 458 . Remotely 651 | 74 103 . . 16 458 . Salvage Created 1121 | 102 140 11 277 89 476 26 Parts 69 | 3 13 3 18 11 20 1 Haulers Intercepted . | . . . . . . . Recyclers Shooed 2 | . 2 . . . . . Parts Field Recycled . | . . . . . . . Retrieved Matter . | . . . . . . . Parts Self-Destructed 11 | . . . 11 . . . Prevented . | . . . . . . . Kills | -11 -10 -10 -10 -8 -7 -7 ------- Run | Yrd Mat Min Sub Mat Fac Sto Combat Hostiles Destroyed 24 | . 3 1 6 4 9 1 Guns 7 | . 3 . 4 . . . Cannons 4 | . . . . . 4 . AOE 13 | . . 1 2 4 5 1 Classes Destroyed 13 | 2 2 1 3 2 3 . Worker 3 | . . . . 1 2 . Builder 1 | . . . . . 1 . Tunneler 4 | 1 . 1 . . 2 . Recycler 3 | 1 . . . . 2 . Operator 2 | . . . . 1 1 . Watcher 2 | . 1 . . . 1 . Swarmer 7 | . . . 3 4 . . Grunt 11 | . 3 . . . 7 1 Sentry 1 | . . . . . 1 . Programmer 1 | . . . . . 1 . Cobbler 1 | . . . 1 . . . Subdweller 6 | . . . 5 1 . . Assembled 1 | . . 1 . . . . Best Kill Streak 10 | 2 3 1 3 4 10 1 Combat Bots Only 4 | . 2 1 3 4 4 1 Max Kills in Single Turn 10 | 1 1 1 2 3 10 1 Gunslinging . | . . . . . . . Exploded 4 | . . 1 2 2 4 1 Melee . | . . . . . . . Uniques/NPCs Destroyed . | . . . . . . . Combat | -11 -10 -10 -10 -8 -7 -7 -------- Run | Yrd Mat Min Sub Mat Fac Sto Hostile Shots Fired 429 | . 38 2 40 4 285 60 Missed 185 | . 11 1 17 1 130 25 Damage Taken 2565 | . 342 41 443 65 1245 429 Core 384 | . 85 . 86 . 120 93 Absorbed by Shields 263 | . . . . . 263 . Regen/Repaired (Parts) 39 | . . . . . 39 . Core Remaining (%) 77 | 100 . . 31 100 . . Volleys Fired 120 | 3 22 4 59 3 27 2 Largest 2 | 2 2 2 2 1 2 1 Hottest 96 | 40 85 50 85 40 96 36 Shots Fired 209 | 6 44 5 101 3 48 2 Gun 136 | 6 44 1 85 . . . Cannon 46 | . . . 3 . 43 . Launcher 27 | . . 4 13 3 5 2 Special . | . . . . . . . Kinetic 158 | 6 42 1 58 3 48 . Thermal 32 | . 2 . 30 . . . Explosive 19 | . . 4 13 . . 2 Electromagnetic . | . . . . . . . Robot Hit Streak 13 | 3 8 2 13 . 3 4 Robot Miss Streak 5 | 2 2 1 1 1 5 . Penetration Max . | . . . . . . . Secondary Targets 2 | . 1 . 1 . . . Max Gunslinging Chain 1 | . 1 . 1 . . . Shots Hit Robots 99 | 3 30 2 36 . 26 2 Core Hits 67 | 3 10 3 18 8 21 4 Critical Kills . | . . . . . . . Critical Parts Destroyed . | . . . . . . . Critical Strikes 2 | . . . 1 . 1 . Destroy 2 | . . . 1 . 1 . Melee Attacks . | . . . . . . . Impact . | . . . . . . . Slashing . | . . . . . . . Piercing . | . . . . . . . Sneak Attacks . | . . . . . . . Combat Hostiles . | . . . . . . . Follow-up Attacks . | . . . . . . . Damage Inflicted 3971 | 33 321 144 908 461 1841 263 Guns 917 | 33 321 . 563 . . . Cannons 787 | . . . 33 . 754 . Explosions 2238 | . . 144 312 461 1062 259 Melee . | . . . . . . . Ramming 29 | . . . . . 25 4 Kinetic 2128 | 33 306 . 361 461 967 . Thermal 1025 | . 15 . 235 . 775 . Explosive 789 | . . 144 312 . 74 259 Electromagnetic . | . . . . . . . Impact . | . . . . . . . Slashing . | . . . . . . . Piercing . | . . . . . . . Highest Corruption 1 | . . . . . . 1 Average Corruption 1 | . . . . . . 1 Corruption Purged . | . . . . . . . Corruption Blocked . | . . . . . . . Overload Shots . | . . . . . . . Overflow Damage 195 | . . 14 24 13 144 . Projectiles 41 | . . . . . 41 . Explosions 154 | . . 14 24 13 103 . Melee . | . . . . . . . Knockbacks 3 | . . . . . 3 . Impact . | . . . . . . . Kinetic 3 | . . . . . 3 . Secondary . | . . . . . . . Self-Inflicted Damage 163 | . . . 76 43 . 44 Shots 6 | . . . 3 2 . 1 Rammed . | . . . . . . . Targets Rammed 2 | . . . . . 1 1 Kicked 2 | . . . . . 1 1 Crushed . | . . . . . . . Highest Temperature 246 | . 24 . 26 8 246 . Average Temperature 48 | . 8 . 10 6 79 . Received Heat Transfer 927 | . 189 . 93 . 552 93 Siege Activations . | . . . . . . . Robots Corrupted . | . . . . . . . Combat Hostiles . | . . . . . . . Parts Fried . | . . . . . . . Impact Corruptions . | . . . . . . . Robots Melted . | . . . . . . . Combat Hostiles . | . . . . . . . Parts Melted 1 | . . . . . 1 . Heat Transferred 862 | . 37 . 275 . 550 . Parts Sabotaged . | . . . . . . . Parts Stolen . | . . . . . . . Parts Stripped . | . . . . . . . Power Chain Reactions . | . . . . . . . Alert | -11 -10 -10 -10 -8 -7 -7 ------- Run | Yrd Mat Min Sub Mat Fac Sto Peak Influence 753 | 10 103 50 . 460 753 384 Initial 331 | . 6 39 . 208 209 331 Average 288 | 3 61 40 . 346 479 344 Maximum Alert Level 3 | . . . . 2 3 1 Low Security (%) 40 | 100 100 100 . . 7 . Level 1 23 | . . . . 66 17 100 Level 2 24 | . . . . 33 47 . Level 3 11 | . . . . . 28 . Level 4 . | . . . . . . . Level 5 . | . . . . . . . High Security . | . . . . . . . Max Security . | . . . . . . . Squads Dispatched 5 | . . . . . 4 1 Investigation 2 | . . . . . 2 . Extermination 1 | . . . . . 1 . Reinforcement 2 | . . . . . 1 1 Assault . | . . . . . . . Garrison . | . . . . . . . Intercept . | . . . . . . . Searches Triggered . | . . . . . . . Construction Impeded . | . . . . . . . Haulers Reinforced . | . . . . . . . Active Scanning Responses . | . . . . . . . Cargo Convoy Interrupts . | . . . . . . . Stealth | -11 -10 -10 -10 -8 -7 -7 --------- Run | Yrd Mat Min Sub Mat Fac Sto Distress Signals . | . . . . . . . Communications Jammed . | . . . . . . . Distress Signals . | . . . . . . . Times Spotted 85 | . 5 17 40 5 13 5 Peak Tracking Total 17 | . 3 17 6 5 8 4 Tactical Retreats 2 | . . . 2 . . . Traps | -11 -10 -10 -10 -8 -7 -7 ------- Run | Yrd Mat Min Sub Mat Fac Sto Traps Triggered 1 | . . . 1 . . . Indirectly . | . . . . . . . Trap Hack Attempts . | . . . . . . . Triggered . | . . . . . . . Disarmed . | . . . . . . . Reprogrammed . | . . . . . . . Reused . | . . . . . . . Traps Extracted . | . . . . . . . Installed . | . . . . . . . Triggered . | . . . . . . . Machines | -11 -10 -10 -10 -8 -7 -7 ---------- Run | Yrd Mat Min Sub Mat Fac Sto Machines Disabled 29 | . . . 2 4 21 2 Max in Single Turn 10 | . . . 1 1 10 1 Machines Repaired . | . . . . . . . Machines Dismantled . | . . . . . . . Machines Sabotaged . | . . . . . . . Overloaded Fab Kills . | . . . . . . . Hacking | -11 -10 -10 -10 -8 -7 -7 --------- Run | Yrd Mat Min Sub Mat Fac Sto Machines Accessed 17 | . 3 . 2 3 6 3 Terminals 9 | . 3 . . 2 1 3 Fabricators 2 | . . . . . 2 . Repair Stations 1 | . . . . . 1 . Recycling Units 1 | . . . . 1 . . Scanalyzers . | . . . . . . . Garrison Access 2 | . . . . . 2 . Total Hacks 42 | . 12 . 2 5 13 10 Successful 22 | . 5 . 2 3 5 7 Failed 20 | . 7 . . 2 8 3 Catastrophic 4 | . 1 . . 1 2 . Database Lockouts . | . . . . . . . Manual 23 | . 8 . . 2 6 7 Terminals 27 | . 12 . . 4 1 10 Fabricators 7 | . . . . . 7 . Repair Stations 2 | . . . . . 2 . Recycling Units 1 | . . . . 1 . . Scanalyzers . | . . . . . . . Garrison Access 3 | . . . . . 3 . Terminal Hacks 9 | . 2 . 2 1 . 4 Record 1 | . . . 1 . . . Prototype ID Bank 1 | . . . . . . 1 Open Door 1 | . . . . . . 1 Alert Level 1 | . . . . . . 1 Locate Traps 2 | . . . . 1 . 1 Zone Layout 2 | . 2 . . . . . Derelict Proto ID Bank 1 | . . . 1 . . . Fabricator Hacks 1 | . . . . . 1 . Network Status 1 | . . . . . 1 . Repair Station Hacks 2 | . . . . . 2 . Scan Component 1 | . . . . . 1 . Repair 1 | . . . . . 1 . Recycling Unit Hacks 1 | . . . . 1 . . Retrieve Components 1 | . . . . 1 . . Scanalyzer . | . . . . . . . Garrison Access Hacks . | . . . . . . . Unauthorized Hacks 9 | . 3 . . 1 2 3 Terminals 8 | . 3 . . 1 1 3 Botnet 6 | . 2 . . 1 1 2 Operators 2 | . 1 . . . . 1 Fabricators 1 | . . . . . 1 . Haulers 1 | . . . . . 1 . Repair Stations . | . . . . . . . Recycling Units . | . . . . . . . Scanalyzers . | . . . . . . . Garrison Access . | . . . . . . . Data Cores Recovered . | . . . . . . . Used . | . . . . . . . Hacking Detections 12 | . 3 . . 2 4 3 Full Trace Events 2 | . . . . . 2 . Feedback Events . | . . . . . . . Feedback Blocked . | . . . . . . . Robot Schematics Acquired . | . . . . . . . Robots Built . | . . . . . . . Authchips . | . . . . . . . Time . | . . . . . . . Total Robot Build Rating . | . . . . . . . Part Schematics Acquired . | . . . . . . . Parts Built . | . . . . . . . Authchips . | . . . . . . . Time . | . . . . . . . Total Part Build Rating . | . . . . . . . Parts Repaired 1 | . . . . . 1 . Time 32 | . . . . . 32 . Parts Recycled . | . . . . . . . Recycled Matter . | . . . . . . . Retrieved Matter . | . . . . . . . Retrieved Components 3 | . . . . 3 . . Parts Scanalyzed . | . . . . . . . Part Schematics Acquired . | . . . . . . . Parts Damaged . | . . . . . . . Bothacking | -11 -10 -10 -10 -8 -7 -7 ------------ Run | Yrd Mat Min Sub Mat Fac Sto Used RIF Installer . | . . . . . . . Robots Hacked . | . . . . . . . Non-combat . | . . . . . . . Combat . | . . . . . . . Robot Hacks Applied . | . . . . . . . Relay Couplers Released . | . . . . . . . Fabnet Peak Effective % . | . . . . . . . Robots Rewired . | . . . . . . . Allies Hacked . | . . . . . . . Hacks Repelled . | . . . . . . . Allies | -11 -10 -10 -10 -8 -7 -7 -------- Run | Yrd Mat Min Sub Mat Fac Sto Total Allies 12 | . . . 12 . . . Largest Group 6 | . . . 6 6 3 . Highest-Rated Group 114 | . . . 114 114 57 . Highest-Rated Ally 19 | . . . 19 19 19 . Total Orders . | . . . . . . . Ally Attacks 65 | . . . 40 23 2 . Total Damage 983 | . . . 666 292 25 . Kills 8 | . . . 6 2 . . Allies Corrupted . | . . . . . . . Allies Melted . | . . . . . . . Intel | -11 -10 -10 -10 -8 -7 -7 ------- Run | Yrd Mat Min Sub Mat Fac Sto Robot Analysis Total . | . . . . . . . Derelict Logs Recovered 2 | . . . 2 . . . Drone Launches . | . . . . . . . Drone Recoveries . | . . . . . . . Exploration | -11 -10 -10 -10 -8 -7 -7 ------------- Run | Yrd Mat Min Sub Mat Fac Sto Turns Passed 3620 | 112 391 128 1949 241 695 104 Spaces Moved 2302 | 57 195 72 1318 165 427 68 Core 5 | 5 . . . . . . Treads 394 | 52 195 72 75 . . . Legs 1903 | . . . 1243 165 427 68 Wheels . | . . . . . . . Hover . | . . . . . . . Flight . | . . . . . . . Fastest Speed 50 | 50 160 160 130 130 126 130 Average Speed 134 | 152 160 160 131 130 129 130 Slowest Speed 160 | 160 160 160 160 130 130 130 Overloaded Moves . | . . . . . . . Propulsion Burnouts . | . . . . . . . Robots Hopped . | . . . . . . . Cave-ins Triggered . | . . . . . . . Exploration Rate (%) 32 | 3 45 23 88 31 15 22 Regions Visited 6 Branch Regions 3 Pre-discovered Areas 1 | . . . 1 . . . Known Exits Taken . | . . . . . . . Unknown Exits Taken 6 | 1 1 1 1 1 1 . Scrap Searched 13 | . . . 13 . . . Spaces Dug 11 | . . . 11 . . . Terrain Destroyed 338 | . . 13 54 19 237 15 Melee . | . . . . . . . Projectile 8 | . . . . . 8 . AOE 330 | . . 13 54 19 229 15 Terrain Rammed . | . . . . . . . Walls Destroyed . | . . . . . . . Machines Disabled . | . . . . . . . Actions | -11 -10 -10 -10 -8 -7 -7 --------- Run | Yrd Mat Min Sub Mat Fac Sto Total 2619 | 73 234 80 1439 190 523 80 Wait 91 | 6 8 3 25 3 40 6 Move 2296 | 56 194 71 1317 164 426 68 Hop . | . . . . . . . Pick Up 31 | 1 4 . 9 6 9 2 Fast Attach 21 | 7 2 1 6 1 3 1 Attach 9 | . . . 1 4 4 . Detach 4 | . . . 3 1 . . Swap 10 | . 1 . 4 2 3 . Drop 34 | . 3 1 15 6 9 . Fire 120 | 3 22 4 59 3 27 2 Melee . | . . . . . . . Ram . | . . . . . . . Kick 2 | . . . . . 1 1 Crush . | . . . . . . . Escape Stasis . | . . . . . . . Rewire . | . . . . . . . Trap . | . . . . . . . Miscellaneous 1 | . . . . . 1 . Route ------- -11/Scrapyard -10/Materials -10/Mines -10/Subcaves (discovered 3 exits: *Mat x2 / *Rec) -8/Materials -7/Factory -7/Storage History --------- Turn | Location | Event 10 | -11/Scrapyard | Discovered new exit (range 14) 113 | -11/Scrapyard | Entered Materials 215 | -10/Materials | Discovered new exit (range 15) 309 | -10/Materials | Build established: Mutant 504 | -10/Materials | Entered Mines 537 | -10/Mines | Assembled infested the area 542 | -10/Mines | Assisted by a Guerilla fighting off Assembled 550 | -10/Mines | YI-UF0 nonchalantly dropped a Grenade Launcher on the ground 617 | -10/Mines | Discovered new exit (range 10) 632 | -10/Mines | Entered Subcaves 640 | -10/Subcaves | Identified exit to Recycling 740 | -10/Subcaves | Visited 4L-MR0's lab 762 | -10/Subcaves | Found Cargo Legs 763 | -10/Subcaves | Attached Cargo Legs, gained temporary slots: Utility x2 888 | -10/Subcaves | Core integrity fell below 50% 1214 | -10/Subcaves | Visited triangular shrine 1222 | -10/Subcaves | Found Prototype Device 1222 | -10/Subcaves | Identified V3-11A's Pendant 1227 | -10/Subcaves | Befriended Subdweller 1235 | -10/Subcaves | Discovered new exit (range 8) 1357 | -10/Subcaves | Befriended Subdweller 1362 | -10/Subcaves | Befriended Subdweller 1372 | -10/Subcaves | Learned location of Zion (-6) 1442 | -10/Subcaves | Befriended Subdweller 1446 | -10/Subcaves | A swath of the cavern ceiling suddenly collapsed 1647 | -10/Subcaves | Befriended Subdweller 2105 | -10/Subcaves | Visited Clippyterm 2109 | -10/Subcaves | Learned Research machine intel 2147 | -10/Subcaves | Befriended Subdweller 2182 | -10/Subcaves | Befriended Subdweller 2187 | -10/Subcaves | Befriended Subdweller 2397 | -10/Subcaves | Befriended Subdweller 2401 | -10/Subcaves | Disturbed a concealed Subdweller 2402 | -10/Subcaves | Befriended Subdweller 2542 | -10/Subcaves | Befriended Subdweller 2542 | -10/Subcaves | Befriended Subdweller 2558 | -10/Subcaves | Discovered new exit (range 7) 2581 | -10/Subcaves | Entered Materials 2581 | -8/Materials | Accompanied by 6 allies 2581 | -8/Materials | Evolved 4 slots: Power x1, Propulsion x2, Utility x1 2696 | -8/Materials | Lost 3 allies 2794 | -8/Materials | Discovered new exit (range 13) 2822 | -8/Materials | Entered Factory 2822 | -7/Factory | Accompanied by 3 allies 2822 | -7/Factory | Evolved 2 slots: Utility x2 2880 | -7/Factory | Repaired Sub. Shrapnel Launcher 2939 | -7/Factory | Discovered new exit (range 15) 2981 | -7/Factory | Lost 3 allies 3462 | -7/Factory | Lost 3 parts (3u) 3517 | -7/Factory | Entered Storage 3621 | -7/Storage | Self-destructed Last Messages --------------- 03576_ O-16 Technician uses terminal to summon reinforcements. 03576_ ALERT: Hostiles spotted, dispatching reinforcements to Terminal S004. 03576_ O-16 Technician locks terminal. 03576_ O-16 Technician cleans trojans from system. 03581_ Imp. Deuterium Engine destroyed. 03584_ K-01 Serf collects debris. 03595_ P-60 Hacker resets K-01 Serf, system corruption cleaned. 03597_ K-01 Serf destroyed. 03600_ Titanium Leg destroyed. 03606_ Adv. Assault Cannon destroyed. 03610_ Imp. Deuterium Engine destroyed. 03615_ Acquired Imp. Grenade Launcher. 03617_ Transport Mainframe disabled. 03619_ Compression Vault explodes. 03619_ G-47 Trooper destroyed. 03620_ Cargo Legs destroyed. Map ----- +----------------------------------------------------+ | | | | | | | | | | | | | | | | | | | | | | | | | | | | | | | | | | | | | | | ????????????????????????????????############## | | ????????????????????????????????# ! ! | | ????????????????????????????????# | | ????????????????????????????????#] ! [ | | ??????????????????############### | | ?????????????###### + % | | ?????????????# @ # | | ?????????????# ######+######+ | | ?????????????# """ [p Y | | ?????????????# """" !% g | | ?????????????? """" """ | | ?????????????? """" """ ######### | | ?????????????? # """ #???????? | | ?????????????# ""??????? | | ?????????????########### ""??????? | | ????????????????????????# """ !== ????????? | | ????????????????????????# """ !== "???????? | | ????????????????????????# """ !== "???????? | | ????????????????????????+ #???????? | | ????????????????????????# ? #???????? | | ????????????????????????####"?" """# #???????? | | ????????????????????????????"??T"????????????? | | ?????????????????????????????????????????????? | | ?????????????????????????????????????????????? | | ?????????????????????????????????????????????? | | ?????????????????????????????????????????????? | | ?????????????????????????????????????????????? | | ?????????????????????????????????????????????? | | ?????????????????????????????????????????????? | | ?????????????????????????????????????????????? | | ?????????????????????????????????????????????? | +----------------------------------------------------+ Best States ------------- Heat Dissipation 34 Energy Generation 27 Energy Capacity 480 Matter Stores 300 Matter Capacity 300 Sight Range 21 Terrain Scan Density 10 Armor Coverage 150 Evasion (%) 55 Recoil Reduction 2 Item Schematics ----------------- None Robot Schematics ------------------ None Fabricated ------------ Nothing Alien Tech Used ----------------- None Achievements -------------- None Challenges ------------ None Game ------ Seed HeavyLinkedCycler Manual? 0 Play Time 00:28:09 Cumulative 230.8 hours Start 2024.06.06 @ 19:58:47 End 2024.06.06 @ 20:25:42 Sessions 1 Manual Loads 0 Difficulty Rogue Special Mode None Game No. 224 Rogue 219 Adventurer 5 Explorer 0 Win Type - Total 4 Types 3/0/0/1/0/0/0/0/0 Lore% 60 Gallery% 80 Achievement% 60 Wizard Run 0 Options --------- Layout 2 ASCII 0 Keyboard 0 Movement Arrows Keybinds 0 Fullscreen 1 Font 24/Terminus Map View 50x44 Zoom Use 0% Tactical HUD 1 Map Filters NONE Filters NONE Steam 1 RUN: cd562aad-e55f-42aa-8d74-2e27104ea459